bitfinex/quotes_ETHUSD_20220220
["timestamp","ask_amount","ask_price","bid_price","bid_amount"]
[1645321516975,1.07614761,2746.3,2745.6,1.18448189]
[1645321517174,0.00627851,2746.2,2745.3,4.85345122]
[1645321517872,0.00627851,2746.2,2745.4,4.85345122]
[1645321518126,0.91751851,2746.2,2745.4,4.85345122]
[1645321518527,1.18656842,2745.8,2745.2,0.1819]
[1645321518739,0.00627851,2745.7,2745.2,5.03535122]
[1645321518930,0.00627851,2745.7,2745.2,0.1819]
[1645321519327,0.91146,2745.6,2745.4,0.72901661]
[1645321520131,0.91146,2745.6,2745.4,0.7325428]
[1645321520728,4.41146,2745.6,2745.4,0.7325428]
[1645321520931,1.8230416,2745.6,2745.4,0.72901661]
[1645321521329,1.8230416,2745.6,2745.4,0.7325428]
[1645321521971,0.91146,2745.6,2745.4,0.7325428]
[1645321522275,0.437,2745.7,2745.4,0.72901661]
[1645321522470,0.437,2745.7,2745.4,0.7325428]
[1645321522969,1.19284693,2745.8,2745.4,0.7325428]
[1645321523369,1.19284693,2745.8,2745.4,0.72901661]
[1645321523569,1.19284693,2745.8,2745.5,1.55200034]
[1645321523969,0.91125,2746.2,2745.5,1.55200034]
[1645321523970,0.00627851,2746.0,2745.5,6.40545156]
[1645321524176,0.00627851,2746.1,2745.7,4.85345122]
[1645321524370,0.00627851,2746.3,2745.8,1.54847419]
[1645321524569,0.00627851,2746.7,2745.9,4.85345122]
[1645321524773,0.00352518,2746.4,2746.0,0.72901661]
[1645321525170,0.8983836,2746.2,2746.0,0.72901661]
[1645321527025,0.00627851,2746.5,2746.0,0.72901661]
[1645321527221,0.00627851,2746.5,2746.1,1.54820621]
[1645321528026,0.00627851,2746.5,2746.2,4.85345122]
[1645321528225,0.00627851,2746.7,2746.4,4.85345122]
[1645321528423,1.04364463,2747.0,2746.5,1.54820621]
[1645321528424,0.00627851,2746.8,2746.5,1.54820621]
[1645321528621,1.04992314,2747.0,2746.6,1.54820621]
[1645321528825,0.99992314,2747.0,2746.6,1.54820621]
[1645321529023,0.99992314,2747.0,2746.5,4.85345122]
[1645321529872,0.89992314,2747.0,2746.5,4.85345122]
[1645321530077,0.89992314,2747.0,2746.6,0.72901661]
[1645321530877,0.00351087,2746.9,2746.6,0.72901661]
[1645321531476,0.91449087,2746.9,2746.6,0.72901661]
[1645321531873,0.91098,2746.9,2746.6,0.72901661]
[1645321532073,0.91449089,2746.9,2746.6,0.72901661]
[1645321532973,0.91098,2746.9,2746.6,0.72901661]
[1645321533220,0.91449089,2746.9,2746.6,0.72901661]
[1645321534122,0.89992314,2747.0,2746.9,1.65121554]
[1645321534325,0.89364463,2747.0,2746.9,1.65121554]
[1645321535124,0.75372563,2747.0,2746.9,1.65121554]
[1645321535327,0.75372563,2747.0,2746.9,2.38023215]
[1645321536123,0.00958804,2747.1,2746.9,2.38023215]
[1645321536324,0.00330953,2747.1,2746.9,2.38023215]
[1645321536523,0.91091,2747.2,2746.9,2.38023215]
[1645321536972,0.00330951,2747.1,2746.9,2.38023215]
[1645321537170,1.01360469,2747.0,2746.9,2.38023215]
[1645321537375,0.00958802,2747.1,2746.9,2.38023215]
[1645321537571,0.00330951,2747.1,2746.9,2.38023215]
[1645321537771,0.91091,2747.2,2746.9,2.38023215]
[1645321537980,0.00330951,2747.1,2747.0,3.5]
[1645321538173,0.00330951,2747.1,2747.0,8.35345122]
[1645321538381,0.00330951,2747.1,2747.0,5.8699344]
[1645321538382,9.51e-06,2747.1,2747.0,5.8699344]
[1645321538972,0.0514883,2747.4,2747.0,5.8699344]
[1645321539173,0.0514883,2747.4,2747.3,4.85345122]
[1645321540475,0.0514883,2747.4,2746.9,1.65121554]
[1645321540476,10.0,2747.3,2746.9,1.65121554]
[1645321540921,10.00627851,2747.3,2746.9,1.65121554]
[1645321541122,0.00627851,2747.3,2746.9,1.65121554]
[1645321541526,1.18216382,2747.0,2746.9,1.65121554]
[1645321541924,1.13216382,2747.0,2746.9,1.65121554]
[1645321542924,2.04310382,2747.0,2746.9,1.65121554]
[1645321544875,1.82228,2746.8,2746.3,0.00318557]
[1645321545179,1.82228,2746.8,2745.1,4.48989974]
[1645321545180,0.91118,2746.3,2745.3,3.3444]
[1645321545375,0.91118,2746.3,2745.4,0.1819]
[1645321545573,0.00627851,2746.2,2745.2,0.1819]
[1645321545775,0.00627851,2746.2,2745.8,0.72901661]
[1645321545978,0.91745851,2746.3,2745.8,0.72901661]
[1645321546173,1.14986935,2746.0,2745.8,0.72901661]
[1645321546575,1.14986935,2746.0,2745.9,0.00318607]
[1645321546774,2.06112935,2746.0,2745.9,0.00318607]
[1645321546975,0.91751851,2746.3,2745.9,0.00318607]
[1645321546976,0.00627851,2746.3,2745.9,0.00318607]
[1645321547377,0.00627851,2746.3,2745.4,1.73010174]
[1645321547575,0.00627851,2746.3,2745.5,1.54814333]
[1645321547777,0.00627851,2746.3,2746.0,0.00291915]
[1645321547977,0.95266207,2746.4,2746.0,0.00291915]
[1645321548228,0.00627851,2746.5,2746.0,0.00291915]
[1645321548428,0.00627851,2746.8,2746.0,0.00291915]
[1645321548635,0.00627851,2746.8,2745.9,1.54814333]
[1645321549028,0.91101,2746.8,2745.9,1.54814333]
[1645321549227,0.00627851,2746.7,2745.9,1.54814333]
[1645321550930,0.00627851,2746.7,2745.9,1.49814333]
[1645321551333,0.00351095,2746.5,2745.9,1.49814333]
[1645321552175,0.00627851,2746.7,2745.9,1.49814333]
[1645321552375,0.00351086,2746.5,2745.9,1.49814333]
[1645321553378,0.91109,2746.5,2745.9,1.49814333]
[1645321553577,0.00627851,2746.4,2745.9,1.49814333]
[1645321554279,0.00627851,2746.4,2745.8,0.00351184]
[1645321554479,1.82582086,2746.5,2745.8,0.00351184]
[1645321554679,0.1806,2746.4,2745.2,0.1819]
[1645321554878,1.19205541,2746.0,2745.8,0.00351175]
[1645321555724,1.19205541,2746.0,2745.2,0.1819]
[1645321556119,1.19205541,2746.0,2745.8,0.00326432]
[1645321557025,1.19205541,2746.0,2745.2,0.1819]
[1645321557223,1.19205541,2746.0,2745.8,0.00326432]
[1645321557422,2.10334541,2746.0,2745.8,0.00326432]
[1645321558223,2.10334541,2746.0,2745.2,0.1819]
[1645321558522,2.10334541,2746.0,2745.8,0.00326432]
[1645321558722,3.01470721,2746.0,2745.8,0.00326432]
[1645321558925,0.1804,2745.9,2745.8,0.00326432]
[1645321559120,0.6174,2745.9,2745.8,0.00326432]
[1645321559393,0.6174,2745.9,2745.1,3.30449974]
[1645321559614,1.0381237,2745.3,2745.1,3.30449974]
[1645321559791,1.10118493,2745.5,2745.3,0.61356999]
[1645321560597,2.01263493,2745.5,2745.3,0.52350499]
[1645321560795,2.01263493,2745.5,2745.3,0.52678556]
[1645321560796,2.44963493,2745.5,2745.3,0.52678556]
[1645321561596,4.27283493,2745.5,2745.3,0.52678556]
[1645321561795,4.27283493,2745.5,2745.3,0.52350499]
[1645321561796,5.18443363,2745.5,2745.3,0.52350499]
[1645321561994,5.18443363,2745.5,2745.3,0.52678556]
[1645321562996,5.18443363,2745.5,2745.3,0.52350499]
[1645321563232,8.88443363,2745.5,2745.3,0.52678556]
[1645321564231,6.14963493,2745.5,2745.3,0.52350499]
[1645321564430,3.7,2745.5,2745.3,0.52678454]
[1645321565428,3.7,2745.5,2745.3,0.52350499]
[1645321565628,3.7,2745.5,2745.3,0.52678454]
[1645321566630,3.7,2745.5,2745.3,0.52350499]
[1645321566874,3.7,2745.5,2745.3,0.52678454]
[1645321567770,3.7,2745.5,2745.3,0.52350499]
[1645321567971,3.7,2745.5,2745.3,0.52678463]
[1645321568173,0.91146,2745.4,2745.3,0.52678463]
[1645321568572,1.34846,2745.4,2745.3,0.52678463]
[1645321568973,1.34846,2745.4,2745.3,0.52350499]
[1645321569580,0.91167,2745.0,2744.3,0.774]
[1645321569776,4.84886,2744.9,2744.3,0.774]
[1645321569974,1.34886,2744.9,2744.3,0.774]
[1645321570174,1.0,2744.8,2744.3,0.774]
[1645321570372,0.437,2744.7,2744.3,0.774]
[1645321570635,1.32046746,2744.6,2744.3,0.774]
[1645321571824,3.5,2744.5,2744.3,0.774]
[1645321572023,0.437,2744.4,2744.3,0.774]
[1645321572228,3.937,2744.4,2744.3,0.774]
[1645321572422,0.437,2744.4,2744.3,0.774]
[1645321572822,0.65638708,2744.4,2744.3,0.695121]
[1645321573025,13.63044708,2744.4,2743.3,10.48458301]
[1645321573227,0.91209,2744.1,2743.3,7.32]
[1645321573425,0.437,2744.0,2743.3,7.32]
[1645321574022,0.437,2744.0,2743.5,0.00106244]
[1645321574023,1.0023922,2743.6,2743.5,0.00106244]
[1645321574224,2.3515722,2743.6,2743.5,0.00106244]
[1645321574893,12.5,2743.5,2742.6,7.32]
[1645321575089,1.34937,2743.4,2742.6,7.32]
[1645321575488,1.10002504,2742.8,2742.6,7.32]
[1645321575689,0.91241,2742.7,2742.6,7.32]
[1645321575889,0.437,2742.9,2742.6,7.32]
[1645321576189,0.21938708,2743.3,2742.6,7.32]
[1645321576388,0.65638708,2743.3,2742.7,3.5]
[1645321576589,0.65638708,2743.3,2742.6,7.32]
[1645321577191,5.23105334,2743.3,2742.7,0.9404618]
[1645321577990,6.14321334,2743.3,2742.7,0.9404618]
[1645321578626,6.14321334,2743.3,2742.6,7.32]
[1645321578823,6.14321334,2743.3,2742.9,0.00351243]
[1645321579224,7.05549574,2743.3,2742.9,0.00351243]
[1645321579928,7.05549574,2743.3,2742.3,1.11333686]
[1645321580124,0.91224,2743.1,2743.0,0.00351538]
[1645321580325,1.03322553,2743.2,2743.1,0.7407654]
[1645321580826,1.47022553,2743.2,2743.1,0.7407654]
[1645321581023,1.68961261,2743.2,2743.1,0.7407654]
[1645321581623,2.60189261,2743.2,2743.1,0.7407654]
[1645321582275,0.65638708,2743.2,2743.1,0.7407654]
[1645321582484,0.21938708,2743.2,2743.1,0.7407654]
[1645321585653,0.21938708,2743.2,2743.1,1.8447654]
[1645321588342,0.21938708,2743.2,2743.1,3.39423434]
[1645321588548,0.21938708,2743.2,2743.1,1.8447654]
[1645321588743,0.21938708,2743.2,2743.1,3.39423706]
[1645321588945,1.30490301,2743.2,2743.1,3.39423706]
[1645321589473,0.21938708,2743.2,2743.1,3.39423706]
[1645321590475,0.21938708,2743.2,2743.1,1.8447654]
[1645321590681,0.21938708,2743.2,2743.1,3.39423989]
[1645321591077,0.21938708,2743.2,2743.1,1.8447654]
[1645321591577,0.21938708,2743.2,2743.1,1.7947654]
[1645321593630,1.13156708,2743.2,2743.1,1.7947654]
[1645321599081,1.13156708,2743.2,2743.1,0.33496712]
[1645321599381,2.95625708,2743.2,2743.1,1.05303027]
[1645321600480,1.30323169,2743.2,2743.1,1.05303027]
[1645321600734,1.13156708,2743.2,2743.1,1.05303027]
[1645321601228,0.21938708,2743.2,2743.1,2.60256761]
[1645321601627,0.21938708,2743.2,2743.1,2.55256761]
[1645321606281,0.21938708,2743.2,2743.1,1.00303027]
[1645321606483,0.21938708,2743.2,2743.1,2.55245784]
[1645321606881,0.21938708,2743.2,2743.1,6.05245784]
[1645321607781,0.21938708,2743.2,2743.1,6.35245784]
[1645321610430,0.21938708,2743.2,2743.1,6.05245784]
[1645321610632,0.21938708,2743.2,2743.1,6.35245784]
[1645321610833,0.21938708,2743.2,2743.1,6.05245784]
[1645321611138,0.21938708,2743.2,2743.1,6.35245784]
[1645321612179,0.21938708,2743.2,2743.1,2.55245784]
[1645321612585,0.21938708,2743.2,2743.1,1.00303027]
[1645321612586,0.65638708,2743.2,2743.1,1.00303027]
[1645321612779,0.83348708,2743.2,2743.1,1.00303027]
[1645321613580,0.65638708,2743.2,2743.1,2.55249024]
[1645321614379,0.65638708,2743.2,2743.1,1.00303027]
[1645321615640,0.83278708,2743.2,2743.1,2.55253253]
[1645321615831,0.83278708,2743.2,2743.1,1.00303027]
[1645321615832,1.83278708,2743.2,2743.1,1.00303027]
[1645321616130,0.65638708,2743.2,2743.1,1.00303027]
[1645321617032,1.65638708,2743.2,2743.1,1.00303027]
[1645321620177,1.95638708,2743.2,2743.1,1.00303027]
[1645321620378,1.65638708,2743.2,2743.1,1.00303027]
[1645321622778,2.25638708,2743.2,2743.1,1.00303027]
[1645321624034,1.65638708,2743.2,2743.1,1.00303027]
[1645321624433,0.65638708,2743.2,2743.1,1.00303027]
[1645321625028,1.65638708,2743.2,2743.1,1.00303027]
[1645321625229,1.56861708,2743.2,2743.1,1.00303027]
[1645321625530,2.56861708,2743.2,2743.1,1.00303027]
[1645321625732,1.56861708,2743.2,2743.1,1.00303027]
[1645321625929,0.65638708,2743.2,2743.1,1.00303027]
[1645321626534,0.65638708,2743.2,2743.1,1.0015592]
[1645321627284,1.65638708,2743.2,2743.1,1.0015592]
[1645321627487,0.65638708,2743.2,2743.1,1.0015592]
[1645321627685,1.65638708,2743.2,2743.1,1.0015592]
[1645321627884,1.56860708,2743.2,2743.1,1.0015592]
[1645321628483,2.56860708,2743.2,2743.1,1.0015592]
[1645321628885,1.56860708,2743.2,2743.1,1.0015592]
[1645321629291,0.65638708,2743.2,2743.1,1.0015592]
[1645321630831,1.65638708,2743.2,2743.1,1.0015592]
[1645321631030,2.56861708,2743.2,2743.1,1.0015592]
[1645321634977,2.51861708,2743.2,2743.1,1.0015592]
[1645321638630,3.11861708,2743.2,2743.1,1.0015592]
[1645321639433,1.51861708,2743.2,2743.1,1.0015592]
[1645321639633,0.60638708,2743.2,2743.1,1.0015592]
[1645321639832,0.60638708,2743.2,2743.1,2.55093564]
[1645321640433,0.16938708,2743.2,2743.1,2.55093564]
[1645321644083,0.16938708,2743.2,2743.1,1.0015592]
[1645321646532,1.16938708,2743.2,2743.1,1.0015592]
[1645321646732,1.60638708,2743.2,2743.1,1.0015592]
[1645321647136,0.60638708,2743.2,2743.1,1.0015592]
[1645321647531,0.16938708,2743.2,2743.1,2.5509457]
[1645321647932,0.16938708,2743.2,2743.1,1.0015592]
[1645321648332,0.16938708,2743.2,2743.1,0.9515592]
[1645321648535,0.16938708,2743.2,2743.1,2.50093729]
[1645321649795,0.16938708,2743.2,2743.1,2.50093572]
[1645321652194,0.16938708,2743.2,2743.1,0.9515592]
[1645321652996,0.16938708,2743.2,2743.1,2.50097537]
[1645321653228,0.16938708,2743.2,2743.1,2.50097661]
[1645321659181,0.16938708,2743.2,2743.1,2.45097661]
[1645321662629,0.16938708,2743.2,2743.1,2.23239817]
[1645321663231,1.08153708,2743.2,2743.1,2.23239817]
[1645321663428,0.16938708,2743.2,2743.1,2.23239817]
[1645321667989,1.08154708,2743.2,2743.1,2.23239817]
[1645321668746,14.0,2743.1,2742.7,1.104]
[1645321668940,14.0,2743.1,2742.2,2.47919883]
[1645321668941,5.0,2742.8,2742.2,2.47919883]
[1645321669139,5.0,2742.5,2742.2,2.35720462]
[1645321669338,5.0,2742.5,2742.2,2.30240732]
[1645321669339,1.7019,2742.4,2742.2,2.30240732]
[1645321669536,4.93017067,2742.4,2742.0,2.47932444]
[1645321669738,1.11424599,2742.3,2742.0,2.47932444]
[1645321669938,0.525,2742.2,2742.0,2.47932444]
[1645321670137,0.91271,2742.1,2741.3,0.67560127]
[1645321670338,0.525,2742.0,2741.4,0.67560127]
[1645321670543,1.43771,2742.1,2742.0,1.05]
[1645321671144,0.91245,2742.4,2742.0,1.05]
[1645321672178,1.824971,2742.4,2742.0,1.05]
[1645321672781,2.824971,2742.4,2742.0,1.05]
[1645321672981,0.16938708,2742.3,2742.0,1.05]
[1645321673785,0.16938708,2742.3,2742.0,1.05329164]
[1645321674202,0.16938708,2742.3,2742.2,1.18551003]
[1645321675648,0.16938708,2742.6,2742.2,1.18551003]
[1645321675846,0.16938708,2742.6,2742.0,1.05]
[1645321676238,0.16938708,2742.6,2742.1,0.00332089]
[1645321677038,0.16938708,2742.6,2742.0,1.05]
[1645321677438,0.16938708,2742.6,2742.2,0.00332085]
[1645321678339,0.16938708,2742.6,2742.0,1.72560127]
[1645321678543,0.16938708,2742.6,2742.3,0.00328251]
[1645321679583,0.16938708,2742.6,2742.0,1.72560127]
[1645321679781,1.08184568,2742.6,2742.3,0.00328249]
[1645321680681,1.08184568,2742.6,2742.0,1.05]
[1645321681091,1.08184568,2742.6,2742.3,0.00328249]
[1645321681284,0.16938708,2742.6,2742.3,0.00328249]
[1645321681886,0.16938708,2742.6,2742.0,1.05]
[1645321682085,0.16938708,2742.6,2742.3,0.00328633]
[1645321682284,3.86938708,2742.6,2742.3,0.00328633]
[1645321683137,4.78183528,2742.6,2742.0,1.05]
[1645321683436,0.91246,2742.4,2742.3,0.00328633]
[1645321683838,1.08184708,2742.4,2742.3,0.00328633]
[1645321684237,1.08184708,2742.4,2742.0,1.05]
[1645321684438,1.092492,2742.2,2742.0,1.05]
[1645321684836,0.91253,2742.1,2742.0,1.05]
[1645321685843,1.43753,2742.1,2742.0,1.05]
[1645321686538,1.43753,2742.1,2742.0,0.55]
[1645321686985,1.60691708,2742.1,2742.0,0.55]
[1645321688892,1.60691708,2742.1,2742.0,2.09989645]
[1645321689087,1.60691708,2742.1,2742.0,2.04989645]
[1645321689488,1.60691708,2742.1,2742.0,0.5]
[1645321689690,1.60691708,2742.1,2742.0,2.0499287]
[1645321689891,1.60691708,2742.1,2742.0,2.59287982]
[1645321690492,2.917692,2742.2,2742.1,0.58920564]
[1645321690741,3.442692,2742.2,2742.1,2.13913434]
[1645321691737,4.442692,2742.2,2742.1,0.58920564]
[1645321692943,1.617492,2742.2,2742.1,0.58920564]
[1645321693341,1.092492,2742.2,2742.1,2.13895959]
[1645321693841,2.43739,2742.5,2742.1,2.13895959]
[1645321694045,2.42815099,2742.5,2742.2,1.54976202]
[1645321694383,2.42815099,2742.5,2742.3,0.54295112]
[1645321694582,2.42815099,2742.5,2742.4,0.54295112]
[1645321695183,3.38803543,2742.5,2742.4,0.54295112]
[1645321695784,1.43739,2742.5,2742.4,0.54295112]
[1645321695986,5.52494,2742.6,2742.4,0.54295112]
[1645321695987,3.7,2742.6,2742.4,0.54295112]
[1645321696184,3.7,2742.6,2742.5,2.09258335]
[1645321696590,3.7,2742.6,2742.5,0.54295112]
[1645321698231,3.7,2742.6,2742.5,2.09254877]
[1645321708539,0.1756,2743.3,2742.7,0.54295112]
[1645321708745,0.525,2743.7,2742.9,0.54295112]
[1645321708944,2.85839362,2744.1,2743.1,0.54295112]
[1645321708945,0.1819,2744.0,2743.1,0.54295112]
[1645321709144,0.1819,2744.0,2743.3,0.54295112]
[1645321709385,3.5,2744.2,2743.5,0.54295112]
[1645321709587,1.03748069,2743.9,2743.6,2.09190592]
[1645321709783,3.5,2744.1,2743.6,0.54295112]
[1645321709982,4.41188,2744.3,2743.6,0.54295112]
[1645321709983,0.91188,2744.3,2743.6,0.54295112]
[1645321710384,0.91188,2744.3,2743.8,0.54295112]
[1645321711388,1.08122984,2744.1,2744.0,0.54295112]
[1645321711985,0.91188,2744.3,2744.0,0.54295112]
[1645321712986,1.11903372,2744.2,2744.0,0.54295112]
[1645321714634,1.11903372,2744.2,2744.1,0.54295112]
[1645321717180,1.64403372,2744.2,2744.1,0.54295112]
[1645321718184,5.34403372,2744.2,2744.1,0.54295112]
[1645321718587,6.34403372,2744.2,2744.1,0.54295112]
[1645321718782,5.34403372,2744.2,2744.1,0.54295112]
[1645321718984,6.34403372,2744.2,2744.1,0.54295112]
[1645321720941,5.34403372,2744.2,2744.1,0.54295112]
[1645321722548,5.29403372,2744.2,2744.1,0.54295112]
[1645321724143,4.225,2744.2,2744.1,0.54295112]
[1645321729737,5.13699,2744.2,2743.8,0.54295112]
[1645321729936,6.048972,2744.2,2743.8,0.54295112]
[1645321730637,5.137,2744.2,2743.8,0.54295112]
[1645321730836,4.225,2744.2,2743.8,0.54295112]
[1645321732480,0.91197,2744.1,2743.8,0.54295112]
[1645321732680,1.43697,2744.1,2743.8,0.54295112]
[1645321734786,1.43697,2744.1,2743.9,0.54295112]
[1645321739787,1.43697,2744.1,2744.0,0.54295112]
[1645321739988,3.7,2744.2,2744.0,0.54295112]
[1645321740194,2.04803078,2744.2,2744.1,4.04295112]
[1645321740389,2.04803078,2744.2,2744.1,2.09159015]
[1645321741188,2.04803078,2744.2,2744.1,3.09330669]
[1645321741388,2.04803078,2744.2,2744.1,1.54466766]
[1645321742990,2.04803078,2744.2,2744.1,3.09330121]
[1645321744036,2.04803078,2744.2,2744.1,2.09158467]
[1645321744238,2.04803078,2744.2,2744.1,0.54295112]
[1645321744636,2.04803078,2744.2,2743.4,0.54295112]
[1645321744836,0.00627851,2744.1,2743.6,0.54295112]
[1645321745036,0.00627851,2744.1,2743.8,1.67942816]
[1645321745238,2.05430929,2744.2,2744.0,0.54295112]
[1645321745436,2.04803078,2744.2,2744.0,0.54295112]
[1645321747297,2.04803078,2744.2,2744.1,2.09160064]
[1645321747999,2.04803078,2744.2,2744.1,5.59160064]
[1645321748196,2.04803078,2744.2,2744.1,2.09160064]
[1645321760336,0.39610355,2744.2,2744.1,2.09160064]
[1645321775941,0.39610355,2744.2,2744.1,2.76720191]
[1645321776143,0.01313743,2744.7,2744.1,2.76720191]
[1645321776144,0.01313743,2744.7,2744.3,0.54295112]
[1645321776440,0.01313743,2744.7,2744.6,0.54295112]
[1645321776643,0.01313743,2744.7,2744.6,2.98413291]
[1645321776887,0.007,2745.0,2744.6,2.98413291]
[1645321777088,0.007,2745.0,2744.8,0.54295112]
[1645321777296,0.007,2745.0,2744.9,2.09160064]
[1645321780292,0.01642051,2745.5,2745.0,0.014]
[1645321780493,0.91769851,2745.6,2745.0,0.014]
[1645321780740,0.91152,2745.3,2745.0,0.014]
[1645321781537,0.91152,2745.3,2745.0,0.55695112]
[1645321781940,0.99852215,2745.4,2745.0,0.55695112]
[1645321782136,0.00627851,2745.4,2745.2,0.54295112]
[1645321782543,0.00328431,2745.5,2745.2,0.54295112]
[1645321782739,0.00627851,2745.6,2745.2,0.54295112]
[1645321783141,0.00328442,2745.5,2745.2,0.54295112]
[1645321783743,0.00328442,2745.5,2745.2,1.64388958]
[1645321783946,0.00627851,2745.7,2745.2,1.64388958]
[1645321784403,0.00328442,2745.5,2745.2,1.64388958]
[1645321785208,0.00627851,2745.7,2745.2,1.64388958]
[1645321785404,0.00328442,2745.5,2745.2,1.64388958]
[1645321785604,0.00328442,2745.5,2745.2,0.54295112]
[1645321786506,0.00627851,2745.7,2745.3,0.54295112]
[1645321786707,0.00328441,2745.5,2745.3,0.54295112]
[1645321787605,1.97972334,2745.8,2745.3,0.54295112]
[1645321787808,0.00328439,2745.5,2745.3,0.54295112]
[1645321788004,3.70328439,2745.5,2745.3,0.54295112]
[1645321788247,1.0,2745.4,2745.3,0.54295112]
[1645321788541,1.475,2745.4,2745.3,0.54295112]
[1645321795834,0.525,2745.4,2745.3,0.54295112]
[1645321796038,6.43795604,2745.5,2745.3,0.54295112]
[1645321796039,4.61145,2745.5,2745.3,0.54295112]
[1645321796235,4.61473534,2745.5,2745.3,0.54295112]
[1645321796435,4.61473534,2745.5,2745.2,0.54295112]
[1645321796636,3.70328534,2745.5,2745.2,0.54295112]
[1645321797236,3.7,2745.5,2745.2,0.54295112]
[1645321799787,0.91148,2745.4,2745.2,0.54295112]
[1645321801589,0.91148,2745.4,2745.3,0.54295112]
[1645321801789,0.91775851,2745.4,2745.3,0.54295112]
[1645321802089,0.91148,2745.4,2745.3,0.54295112]
[1645321802290,2.43648,2745.4,2745.3,0.54295112]
[1645321802491,14.0,2745.3,2745.0,0.014]
[1645321802688,2.34858,2745.2,2745.0,0.014]
[1645321802889,3.34858,2745.2,2745.0,0.014]
[1645321803142,3.51958,2745.2,2745.0,0.014]
[1645321803348,0.9215371,2745.1,2745.0,0.014]
[1645321803545,1.4465371,2745.1,2745.0,0.014]
[1645321804943,2.3581971,2745.1,2745.0,0.014]
[1645321806349,1.43666,2745.1,2745.0,0.014]
[1645321806745,0.525,2745.1,2745.0,0.014]
[1645321807194,0.91776851,2745.4,2745.0,0.014]
[1645321807808,0.00627851,2745.4,2745.0,0.014]
[1645321808295,0.00627851,2745.4,2745.2,0.82615356]
[1645321808501,0.00627851,2745.4,2745.0,0.014]
[1645321808502,0.00627851,2745.4,2745.3,0.82615356]
[1645321808694,3.70351407,2745.5,2745.3,0.82615356]
[1645321809395,0.91146,2745.4,2745.3,0.82615356]
[1645321809795,1.91146,2745.4,2745.3,0.82615356]
[1645321809997,0.91146,2745.4,2745.3,0.82615356]
[1645321810193,1.91146,2745.4,2745.3,0.82615356]
[1645321812544,0.91146,2745.4,2745.3,0.82615356]
[1645321812744,3.70351417,2745.5,2745.3,0.82615356]
[1645321812745,3.7,2745.5,2745.3,0.82615356]
[1645321813142,3.70351417,2745.5,2745.3,0.82615356]
[1645321813543,3.70351417,2745.5,2745.2,0.82615356]
[1645321813942,3.7,2745.5,2745.2,0.82615356]
[1645321814389,3.70351417,2745.5,2745.2,0.82615356]
[1645321815290,2.3482,2745.4,2745.2,0.82615356]
[1645321816195,0.9116,2745.3,2745.2,0.82615356]
[1645321816397,1.4366,2745.3,2745.2,0.82615356]
[1645321816592,2.4366,2745.3,2745.2,0.82615356]
[1645321817393,3.51305744,2745.3,2745.2,0.82615356]
[1645321823294,1.4366,2745.3,2745.2,0.82615356]
[1645321823495,3.70351412,2745.5,2745.2,0.82615356]
[1645321823695,3.7,2745.5,2745.2,0.82615356]
[1645321823895,3.70351412,2745.5,2745.2,0.82615356]
[1645321824896,3.7,2745.5,2745.2,0.82615356]
[1645321825096,3.70351417,2745.5,2745.2,0.82615356]
[1645321825946,3.7,2745.5,2745.2,0.82615356]
[1645321826148,1.82312,2745.4,2745.2,0.82615356]
[1645321826449,2.82312,2745.4,2745.2,0.82615356]
[1645321826849,2.82312,2745.4,2745.2,0.8251302]
[1645321827450,1.82312,2745.4,2745.2,0.8251302]
[1645321828046,2.82312,2745.4,2745.2,0.8251302]
[1645321828446,2.82312,2745.4,2745.3,0.8251302]
[1645321828646,2.82939851,2745.4,2745.3,0.8251302]
[1645321828847,2.82312,2745.4,2745.3,0.8251302]
[1645321829691,1.82312,2745.4,2745.3,0.8251302]
[1645321830089,2.82312,2745.4,2745.3,0.8251302]
[1645321830788,1.82312,2745.4,2745.3,0.8251302]
[1645321831290,1.82312,2745.4,2745.3,0.7751302]
[1645321832093,1.77312,2745.4,2745.3,0.7751302]
[1645321832893,5.13655,2745.5,2745.3,0.7751302]
[1645321833544,5.13655,2745.5,2745.4,0.7751302]
[1645321835852,5.61155,2745.5,2745.4,0.7751302]
[1645321839803,3.7,2745.5,2745.4,0.7751302]
[1645321841442,4.225,2745.5,2745.4,0.7731602]
[1645321841743,5.225,2745.5,2745.4,0.7731602]
[1645321843747,5.825,2745.5,2745.4,0.7731602]
[1645321843948,14.91175,2745.4,2745.0,0.014]
[1645321844247,0.825,2745.3,2745.0,0.014]
[1645321844694,1.13281892,2745.1,2745.0,0.014]
[1645321844897,2.56938892,2745.1,2745.0,0.014]
[1645321845296,3.56938892,2745.1,2745.0,0.014]
[1645321845498,2.56938892,2745.1,2745.0,0.014]
[1645321845695,3.56938892,2745.1,2745.0,1.56244089]
[1645321851045,3.56938892,2745.1,2745.0,0.014]
[1645321853897,3.56938892,2745.1,2744.5,1.1562]
[1645321854197,1.0,2745.0,2744.6,1.54850518]
[1645321854398,1.91172,2745.0,2744.6,1.54850518]
[1645321854596,2.8234416,2745.0,2744.6,1.54850518]
[1645321854797,0.91169,2744.9,2744.6,1.54850518]
[1645321856445,2.13281892,2745.1,2744.6,1.54850518]
[1645321857648,3.04441892,2745.1,2744.6,1.54850518]
[1645321860498,6.74441892,2745.1,2744.6,1.54850518]
[1645321861198,14.19145582,2745.1,2744.6,1.54850518]
[1645321861397,0.525,2745.0,2744.6,1.54850518]
[1645321867692,0.525,2745.0,2744.6,1.5469615]
[1645321869796,0.825,2745.0,2744.6,1.5469615]
[1645321870295,0.525,2745.0,2744.6,1.5469615]
[1645321870495,0.825,2745.0,2744.6,1.5469615]
[1645321872742,0.3,2744.9,2744.6,1.5469615]
[1645321872944,0.91177,2744.8,2744.6,1.5469615]
[1645321873347,1.91177,2744.8,2744.4,3.3134]
[1645321873547,1.91177,2744.8,2744.1,1.1401]
[1645321875898,0.91177,2744.8,2744.1,1.1401]
[1645321878151,0.01404372,2745.0,2744.8,1.65159]
[1645321878751,3.7,2745.1,2744.8,1.65159]
[1645321879346,3.7,2745.1,2744.9,0.87685978]
[1645321879946,3.7,2745.1,2744.8,1.65159]
[1645321881352,4.61157,2745.1,2744.8,1.65159]
[1645321884398,1.0,2745.0,2744.8,1.65159]
[1645321886848,1.82343,2745.0,2744.8,1.65159]
[1645321887046,2.82343,2745.0,2744.8,1.65159]
[1645321888547,2.82343,2745.0,2744.9,1.54845511]
[1645321891700,2.82343,2745.0,2744.9,1.54687353]
[1645321896443,1.0,2745.0,2744.9,1.54687353]
[1645321896644,4.61157,2745.1,2744.9,1.54687353]
[1645321897298,4.61157,2745.1,2744.9,1.02187353]
[1645321902151,5.52325,2745.1,2744.9,1.02187353]